fUST/lending_fUST_20241009
["ID","MTS","AMOUNT","RATE_DAILY","PERIOD"]
[340066063,1728448241011,-181.663646,0.00036846,14]
[340066064,1728448241020,-1498.380191,0.00036846,14]
[340066065,1728448241030,-1498.380191,0.00036846,14]
[340066066,1728448241040,-1498.380191,0.00036846,14]
[340066067,1728448241050,-193.25016175,0.00036846,120]
[340066068,1728448241059,-38648.6914023,0.00036846,5]
[340066095,1728448246113,-361.893613,0.00036,2]
[340066096,1728448246123,-157.45815181,0.00036846,5]
[340066098,1728448835545,562.25780078,0.00026575,2]
[340066099,1728448992576,637.0,0.00032877,2]
[340066100,1728449127730,176.66770789,0.00032811,2]
[340066137,1728449432400,-170.883055,0.00033318,2]
[340066138,1728449432409,-1096.2106914,0.00033711,2]
[340066139,1728449432418,-399.374773,0.00033809,2]
[340066140,1728449432428,-264.650347,0.00033898,2]
[340066141,1728449432437,-200.0,0.00034,120]
[340066142,1728449432446,-399.374773,0.00034493,2]
[340066143,1728449432456,-465.92261372,0.00035158,2]
[340066144,1728449432465,-399.374773,0.00035178,2]
[340066145,1728449432474,-1088.4056156,0.00035435,2]
[340066146,1728449432483,-181.0,0.00035933,2]
[340066147,1728449432492,-400.0,0.00035934,2]
[340066148,1728449432502,-242.28335577,0.00035935,2]
[340066149,1728449432513,-846.12225983,0.00035935,2]
[340066150,1728449432522,-174.0,0.00036,2]
[340066151,1728449432531,-344.647235,0.00036,2]
[340066152,1728449432541,-1088.4056156,0.00036435,2]
[340066153,1728449432550,-7067.94404438,0.00036557,2]
[340066154,1728449432559,-3858.41808555,0.00036626,2]
[340066155,1728449432568,-321.09534929,0.00036725,15]
[340066156,1728449432578,-17744.649972,0.00036726,5]
[340066157,1728449432587,-44524.62485888,0.00036726,5]
[340066292,1728450638543,-264.6503482,0.00033567,2]
[340066293,1728450638553,-169.177812,0.00033956,2]
[340066294,1728450638563,-500.0,0.00035435,2]
[340066295,1728450638573,-500.0,0.00035935,2]
[340066296,1728450638718,-94.46214827,0.00036,120]
[340066297,1728450638730,-208.18836993,0.00036,120]
[340066298,1728450638739,-339.350487,0.00036,2]
[340066299,1728450638748,-500.0,0.00036435,2]
[340066300,1728450638758,-150.0,0.00036473,5]
[340066301,1728450638767,-199.00533311,0.00036473,5]
[340066302,1728450638777,-299.80489376,0.00036473,5]
[340066303,1728450638787,-548.43024523,0.00036492,15]
[340066304,1728450638797,-500.0,0.00036492,15]
[340066305,1728450638807,-345.26093181,0.00036492,15]
[340066306,1728450638816,-500.0,0.00036492,15]
[340066307,1728450638826,-526.60773737,0.00036492,15]
[340066308,1728450638836,-500.0,0.00036492,15]
[340066309,1728450638845,-500.0,0.00036492,15]
[340066310,1728450638855,-500.0,0.00036492,15]
[340066311,1728450638864,-667.85351144,0.00036493,60]
[340066312,1728450638873,-10750.37492108,0.00036493,7]
[340066314,1728450640581,-1000.0,0.00036493,7]
[340066323,1728450643529,-38139.9844415,0.00036493,7]
[340066324,1728450646423,-232194.01282697,0.00036493,7]
[340066338,1728451705119,260.05207422,0.00021,2]
[340066339,1728451717128,234.35840072,0.00021,2]
[340066340,1728451717155,5971.86425644,0.00021,2]
[340066341,1728451718277,7943.06276453,0.0002,2]
[340066342,1728451719130,90531.75572663,0.00020377,2]
[340066343,1728451720078,9501.89683931,0.0002,2]
[340066344,1728451722073,14713.44250926,0.0002061,2]
[340066435,1728451838818,-170.883055,0.00033819,2]
[340066437,1728451838829,-249.077784,0.00034107,2]
[340066439,1728451838839,-168.770538,0.00034193,2]
[340066441,1728451838848,-168.770538,0.00034416,2]
[340066443,1728451838857,-168.770538,0.00034638,2]
[340066445,1728451838866,-168.770538,0.00034861,2]
[340066446,1728451838875,-168.770538,0.00035084,2]
[340066447,1728451838885,-500.0,0.0003515,2]
[340066449,1728451838894,-465.94323198,0.00035176,2]
[340066451,1728451838904,-168.770538,0.00035307,2]
[340066453,1728451838913,-168.770538,0.00035529,2]
[340066454,1728451838922,-609.85653854,0.0003565,2]
[340066455,1728451838935,-66.95469246,0.0003565,2]
[340066456,1728451838944,-168.770538,0.00035752,2]
[340066457,1728451838954,-168.770538,0.00035975,2]
[340066458,1728451838963,-344.647235,0.00036,2]
[340066459,1728451838973,-383.90117166,0.00036198,15]
[340066460,1728451838981,-500.0,0.00036198,15]
[340066461,1728451838990,-214.60047672,0.00036198,15]
[340066485,1728451840723,-27.08217555,0.00036198,15]
[340066486,1728451840735,-500.0,0.00036198,15]
[340066487,1728451840747,-618.62541616,0.00036198,15]
[340066488,1728451840757,-500.0,0.00036198,15]
[340066489,1728451840767,-445.2356743,0.00036199,60]
[340066491,1728451840780,-8551.5833991,0.00036199,7]
[340066493,1728451840793,-3450.7023123,0.00036199,7]
[340066494,1728451840805,-506.51297748,0.00036199,7]
[340066495,1728451840816,-3192.48866919,0.00036199,7]
[340066500,1728451843661,-1235.23563283,0.00036199,7]
[340066513,1728452548086,197.794026,0.00032842,2]
[340066514,1728452571871,500.0,0.00032877,2]
[340066515,1728452645396,404.526571,0.00032664,2]
[340066519,1728452979411,319.1923393,0.00031946,2]
[340066569,1728453037909,-156.47996432,0.00032877,2]
[340066570,1728453037920,-283.30135774,0.00033221,2]
[340066571,1728453038017,-8.14924926,0.00033221,2]
[340066572,1728453038037,-169.205087,0.00033326,2]
[340066573,1728453038050,-400.0,0.0003339,2]
[340066574,1728453038059,-400.0,0.0003339,2]
[340066575,1728453038069,-8032.37309614,0.00033391,2]
[340066577,1728453039815,-2015.19223702,0.00033391,2]
[340066578,1728453039828,-2558.11096744,0.00033391,2]
[340066579,1728453039838,-291.450607,0.00033906,2]
[340066580,1728453039848,-291.450607,0.00034591,2]
[340066581,1728453039857,-161.8717782,0.00035,60]
[340066582,1728453039876,-134.95200467,0.00035,60]
[340066583,1728453039886,-771.345,0.00035,120]
[340066584,1728453039896,-15678.33453546,0.00035,20]
[340066585,1728453039906,-560.0,0.00035861,2]
[340066586,1728453039916,-344.647235,0.00036,2]
[340066587,1728453039926,-1000.0,0.00036138,2]
[340066588,1728453039936,-159.99,0.00036138,3]
[340066589,1728453039947,-1239132.23760355,0.00036147,7]
[340066590,1728453039962,-712.554604,0.00036147,7]
[340066591,1728453039974,-11345.36936712,0.00036147,7]
[340066597,1728453502324,400.0,0.000328,2]
[340066598,1728454149473,150.0,0.000328,2]
[340066599,1728454169499,150.8,0.000328,2]
[340066632,1728454231874,-726.20672113,0.00032877,2]
[340066634,1728454231886,-1486.18594664,0.00032877,2]
[340066636,1728454231896,-336.960025,0.0003301,2]
[340066638,1728454231906,-173.291997,0.00033172,2]
[340066640,1728454231915,-159.32854,0.00033444,2]
[340066642,1728454231924,-170.883055,0.00033719,2]
[340066644,1728454231934,-173.291997,0.00033857,2]
[340066646,1728454231944,-173.291997,0.00034542,2]
[340066649,1728454231954,-159.32854,0.00035187,2]
[340066651,1728454231963,-400.0,0.00035712,2]
[340066653,1728454231973,-400.0,0.00035712,2]
[340066655,1728454231983,-1447.92498453,0.00035713,2]
[340066704,1728454238047,-1769.15890464,0.00035713,2]
[340066706,1728454238056,-250.0,0.00035886,2]
[340066708,1728454238065,-500.0,0.00035973,5]
[340066710,1728454238074,-500.0,0.00035973,5]
[340066712,1728454238084,-268.73082016,0.00035998,15]
[340066714,1728454238093,-169.17785659,0.00035998,15]
[340066716,1728454238102,-500.0,0.00035998,15]
[340066718,1728454238114,-483.03779131,0.00035998,15]
[340066720,1728454238123,-500.0,0.00035998,15]
[340066722,1728454238132,-8816.58901465,0.00035999,7]
[340066724,1728454238144,-5421.98230566,0.00035999,7]
[340066842,1728454367112,168.388246,0.00032766,2]
[340066843,1728454528031,200.0,0.0002,30]
[340066844,1728454535745,200.0,0.0002,30]
[340066845,1728454544425,200.0,0.0002,30]
[340066846,1728454551489,200.0,0.0002,30]
[340066847,1728454561349,200.0,0.0002,30]
[340066848,1728454574747,200.0,0.0002,30]
[340066849,1728454581229,200.0,0.0002,30]
[340066850,1728454613575,243.97,0.0002,30]
[340066852,1728455050542,4653.0,0.00032876,2]
[340066854,1728455316587,3780.77554217,0.00021,2]
[340066855,1728455318357,635.345636,0.00023,2]
[340066894,1728455440199,-400.0,0.00032999,2]
[340066895,1728455440210,-400.0,0.00032999,2]
[340066896,1728455440222,-10872.11969486,0.00033,15]
[340066897,1728455440232,-1781.5820994,0.00033221,2]
[340066898,1728455440243,-303.176752,0.00033508,2]
[340066899,1728455440253,-167.684393,0.00033544,2]
[340066900,1728455440264,-167.684393,0.00033689,2]
[340066901,1728455440274,-167.684393,0.00033835,2]
[340066902,1728455440283,-167.684393,0.00033981,2]
[340066903,1728455440293,-167.684393,0.00034126,2]
[340066904,1728455440478,-167.684393,0.00034272,2]
[340066905,1728455440487,-167.684393,0.00034418,2]
[340066906,1728455440498,-167.684393,0.00034563,2]
[340066907,1728455440507,-167.684393,0.00034709,2]
[340066908,1728455440517,-167.684393,0.00034855,2]
[340066909,1728455440526,-167.684393,0.00035,2]
[340066910,1728455440535,-500.0,0.00035055,2]
[340066911,1728455440544,-167.684393,0.00035146,2]
[340066912,1728455440553,-167.684393,0.00035292,2]
[340066913,1728455440562,-560.0,0.00035456,2]
[340066914,1728455440571,-678.46622,0.00035555,2]
[340066915,1728455440580,-164.82735751,0.00035766,2]
[340066916,1728455440590,-500.0,0.00035773,2]
[340066917,1728455440599,-172.46,0.00035773,5]
[340066918,1728455440608,-500.0,0.00035773,5]
[340066919,1728455440618,-500.0,0.00035773,5]
[340066920,1728455440629,-500.0,0.00035773,5]
[340066921,1728455440641,-164.82735748,0.00035775,2]
[340066922,1728455440654,-159.99,0.00035776,3]
[340066923,1728455440663,-164.82735748,0.00035783,2]
[340066924,1728455440673,-99999.0,0.00035786,60]
[340066925,1728455440682,-197.88252191,0.00035786,60]
[340066926,1728455440691,-164.82735748,0.00035792,2]
[340066927,1728455440700,-1568.021436,0.000358,2]
[340066928,1728455440709,-164.82735748,0.000358,2]
[340066929,1728455440719,-1386.60617574,0.00035866,2]
[340066930,1728455440731,-6030.49079378,0.00035872,10]
[340066931,1728455440741,-254.97821093,0.00035873,5]
[340066932,1728455440752,-575.99229912,0.00035873,5]
[340066933,1728455440762,-500.0,0.00035873,5]
[340066934,1728455440772,-500.0,0.00035873,5]
[340066935,1728455440781,-175.3316164,0.00035873,5]
[340066936,1728455440790,-500.0,0.00035873,5]
[340066937,1728455440800,-150.0,0.00035873,5]
[340066938,1728455440809,-500.0,0.00035873,5]
[340066939,1728455440818,-500.0,0.00035873,5]
[340066940,1728455440828,-500.0,0.00035873,5]
[340066941,1728455440838,-161.06650864,0.00035875,10]
[340066942,1728455440847,-160.0,0.00035875,10]
[340066943,1728455440857,-500.0,0.00035875,15]
[340066944,1728455440871,-245.83017521,0.00035875,15]
[340066945,1728455440881,-565.26898646,0.00035875,15]
[340066946,1728455440890,-500.0,0.00035875,15]
[340066947,1728455440910,-228393.723486,0.00035876,5]
[340066948,1728455440920,-296884.58839,0.00035876,5]
[340066949,1728455440930,-311.73967688,0.00035885,10]
[340066950,1728455440939,-185.507,0.00035885,43]
[340066951,1728455440949,-500.0,0.00035885,60]
[340066952,1728455440958,-524.00377285,0.00035885,62]
[340066953,1728455440968,-578095.01512594,0.00035886,2]
[340066956,1728455469348,260.41,0.00032877,2]
[340066958,1728455828745,303.176753,0.00032554,2]
[340066959,1728456106815,-400.0,0.00032999,2]
[340066960,1728456106841,-9600.0,0.00033,20]
[340066961,1728456108108,-6995.59873999,0.00033,20]
[340066962,1728456108132,-160.3944898,0.00033,5]
[340066963,1728456108158,-166.552669,0.00033414,2]
[340066964,1728456108182,-2677.45410121,0.00035,4]
[340066965,1728456108991,-3322.54589879,0.00035,4]
[340066966,1728456109016,-560.0,0.00035456,2]
[340066967,1728456109041,-185.507,0.00035616,42]
[340066968,1728456109068,-156.2470047,0.00035616,2]
[340066969,1728456109092,-153.0,0.00035616,2]
[340066970,1728456109117,-153.0,0.00035616,2]
[340066971,1728456109142,-153.0,0.00035616,2]
[340066972,1728456109169,-153.0,0.00035616,2]
[340066973,1728456109193,-153.0,0.00035616,2]
[340066974,1728456109217,-306.0,0.00035616,2]
[340066975,1728456109242,-4704.70009651,0.00035666,2]
[340066976,1728456110046,-826.92104626,0.00035666,2]
[340066977,1728456110073,-158.51635062,0.00035676,2]
[340066978,1728456110097,-158.5163506,0.00035731,2]
[340066979,1728456110123,-7613.12411618,0.00035766,5]
[340066980,1728456110150,-1242.92213634,0.00035766,5]
[340066981,1728456111247,-10000.0,0.00035766,5]
[340066982,1728456112319,-500.0,0.00033,5]
[340066983,1728456112344,-504.86163743,0.0003437,5]
[340066984,1728456112371,-8995.13836257,0.00035766,5]
[340066985,1728456113377,-10000.0,0.00035766,5]
[340066986,1728456114347,-4398.47481329,0.00035766,5]
[340066987,1728456114375,-197.88252191,0.00035766,60]
[340066988,1728456114400,-500.0,0.00035773,5]
[340066989,1728456114429,-158.5163506,0.00035785,2]
[340066990,1728456114584,-500.0,0.00035873,5]
[340066991,1728456114611,-500.0,0.00035873,5]
[340066992,1728456114640,-500.41975102,0.00035873,5]
[340066993,1728456114666,-3244.70656318,0.00035875,5]
[340066994,1728456115382,-4368.417553,0.00035875,5]
[340066995,1728456115412,-5631.582447,0.00035875,5]
[340066996,1728456116472,-10000.0,0.00035875,5]
[340066997,1728456117496,-10000.0,0.00035875,5]
[340066998,1728456118614,-9004.9528652,0.00035875,5]
[340066999,1728456118641,-995.0471348,0.00035875,120]
[340067000,1728456119622,-4.9528652,0.00035875,120]
[340067001,1728456119648,-1102.42269967,0.00035875,120]
[340067002,1728456119676,-172.08112265,0.00035875,15]
[340067003,1728456119704,-500.0,0.00035875,15]
[340067004,1728456119730,-595.68829053,0.00035875,15]
[340067005,1728456119756,-166.98180337,0.00035875,15]
[340067006,1728456119782,-7457.87321858,0.00035876,5]
[340067007,1728456261094,2503.64,0.00032877,2]
[340067022,1728456632195,-1000.0,0.00035,120]
[340067024,1728456632205,-153.0,0.00035616,2]
[340067027,1728456632214,-153.0,0.00035616,2]
[340067029,1728456632224,-400.0,0.00035685,2]
[340067031,1728456632233,-1317.53765894,0.00035686,2]
[340067033,1728456632292,-2175.13508955,0.00035686,2]
[340067089,1728456643915,-1347.49575139,0.00035686,2]
[340067090,1728456643925,-500.0,0.00035773,5]
[340067091,1728456643935,-3853.50424861,0.00035776,5]
[340067119,1728456982582,-4311.63802331,0.00035676,2]
[340067120,1728456982611,-400.0,0.00035772,2]
[340067121,1728456982635,-504.30034588,0.00035773,5]
[340067122,1728456982672,-501.86569425,0.00035773,5]
[340067123,1728456982697,-504.46943044,0.00035773,5]
[340067124,1728456982723,-6286.2428312,0.00035776,5]
[340067125,1728456982754,-33759.5734159,0.00035776,5]
[340067126,1728456982779,-197.88252192,0.00035776,60]
[340067127,1728456982802,-1000.0,0.00035786,2]
[340067128,1728456982826,-99999.0,0.00035786,60]
[340067129,1728456982852,-18858.7284936,0.00035866,5]
[340067130,1728456982877,-33759.5734159,0.00035866,5]
[340067131,1728456982900,-500.0,0.00035873,5]
[340067132,1728456982923,-500.0,0.00035873,2]
[340067133,1728456982946,-500.0,0.00035873,5]
[340067134,1728456982968,-258.61826393,0.00035873,5]
[340067135,1728456982992,-500.0,0.00035873,5]
[340067136,1728456983020,-501.3339819,0.00035873,5]
[340067137,1728456983044,-300.861673,0.00035875,120]
[340067138,1728456983069,-500.0,0.00035875,15]
[340067139,1728456983093,-216.88726235,0.00035875,15]
[340067140,1728456983120,-25144.9713248,0.00035876,5]
[340067141,1728456983147,-12402.05332162,0.00035876,5]
[340067184,1728457832441,-400.0,0.00032999,2]
[340067186,1728457832452,-400.0,0.00032999,2]
[340067188,1728457832462,-10185.2448557,0.00033,30]
[340067190,1728457832472,-6472.014702,0.00034882,2]
[340067191,1728457832482,-500.0,0.00035055,2]
[340067193,1728457832492,-475.80051696,0.00035128,2]
[340067195,1728457832502,-6472.014702,0.00035295,2]
[340067197,1728457832511,-495.49693534,0.00035356,60]
[340067199,1728457832522,-3772.68327044,0.00035356,2]
[340067200,1728457832531,-6472.014704,0.0003541,2]
[340067201,1728457832541,-507.0,0.00035456,2]
[340067202,1728457832553,-500.0,0.00035555,2]
[340067203,1728457832562,-1212.63,0.00035776,3]
[340067204,1728457832572,-303.16,0.00035776,3]
[340067205,1728457832582,-11359.1772002,0.00035776,5]
[340067206,1728457832593,-4210.51362112,0.00035776,5]
[340067207,1728457832603,-1000.0,0.00035776,2]
[340067208,1728457832616,-8023.18546403,0.00035786,60]
[340067211,1728457839286,-5695.73889065,0.00035786,60]
[340067215,1728457840619,-493.54539623,0.00035786,60]
[340067221,1728457843674,-1039.062984,0.00035786,60]
[340067232,1728457877058,253.2644356,0.00032635,2]
[340067317,1728459038785,-500.0,0.00033397,2]
[340067318,1728459038888,-3839.4924858,0.00033397,2]
[340067319,1728459038898,-173.4973496,0.0003346,2]
[340067320,1728459038907,-500.0,0.0003458,2]
[340067321,1728459038916,-362.6519326,0.00034658,2]
[340067322,1728459038926,-400.0,0.00034999,2]
[340067323,1728459038935,-400.0,0.00034999,2]
[340067324,1728459038944,-1000.0,0.00035,120]
[340067325,1728459038953,-915.36331,0.0003508,2]
[340067326,1728459038963,-150.0,0.000357,2]
[340067328,1728459038972,-116.97730518,0.0003574,2]
[340067330,1728459038984,-3184.12055642,0.0003574,2]
[340067332,1728459038995,-158.5163506,0.00035766,2]
[340067334,1728459039004,-1000.0,0.00035785,2]
[340067336,1728459039014,-185.507,0.00035785,43]
[340067338,1728459039025,-6562.19609298,0.00035786,60]
[340067349,1728459045503,-19699.11005713,0.00035786,60]
[340067350,1728459045513,-330.33129022,0.00035786,30]
[340067351,1728459045523,-10223.2594802,0.0003584,5]
[340067352,1728459045535,-3789.462259,0.0003584,5]
[340067353,1728459045546,-960.0,0.00035866,3]
[340067354,1728459045557,-15334.8892203,0.00035866,5]
[340067355,1728459045567,-5684.1933885,0.00035866,5]
[340067356,1728459045576,-500.0,0.00035873,2]
[340067357,1728459045586,-500.0,0.00035873,5]
[340067358,1728459045596,-20446.5189604,0.00035876,5]
[340067359,1728459045605,-7578.924518,0.00035876,5]
[340067360,1728459045615,-500.0,0.00035884,15]
[340067361,1728459045625,-166.5823724,0.00035884,15]
[340067362,1728459045634,-500.0,0.00035884,15]
[340067363,1728459045644,-500.0,0.00035884,15]
[340067364,1728459045655,-500.0,0.00035884,15]
[340067365,1728459045665,-500.0,0.00035884,15]
[340067366,1728459045675,-500.0,0.00035884,15]
[340067367,1728459045685,-500.0,0.00035884,15]
[340067368,1728459045696,-500.0,0.00035884,15]
[340067369,1728459045707,-500.0,0.00035884,15]
[340067370,1728459045719,-500.0,0.00035884,15]
[340067371,1728459045730,-500.0,0.00035884,15]
[340067372,1728459045739,-500.0,0.00035884,15]
[340067373,1728459045750,-500.0,0.00035884,15]
[340067374,1728459045760,-156.45538264,0.00035885,2]
[340067375,1728459045770,-12100.26885542,0.00035885,2]
[340067376,1728459045780,-500.0,0.00035885,15]
[340067377,1728459045790,-224.5673659,0.00035885,15]
[340067378,1728459045799,-485.83438068,0.00035885,15]
[340067379,1728459045809,-478.36229313,0.00035885,15]
[340067380,1728459045820,-500.0,0.00035885,15]
[340067381,1728459045831,-192368.5654097,0.00035886,2]
[340067382,1728459045841,-1528.16945868,0.0003589,2]
[340067383,1728459045852,-720.9844463,0.0003589,2]
[340067384,1728459045862,-154.7698879,0.0003589,2]
[340067385,1728459045872,-298.028018,0.0003589,2]
[340067386,1728459045884,-413.3241676,0.0003589,2]
[340067387,1728459045895,-153.0,0.0003589,2]
[340067388,1728459045904,-153.0,0.0003589,2]
[340067389,1728459045914,-218.2155747,0.0003589,2]
[340067390,1728459045923,-413.3241676,0.0003589,2]
[340067391,1728459046031,-153.0,0.0003589,2]
[340067392,1728459046041,-153.0,0.0003589,2]
[340067393,1728459046051,-153.0,0.0003589,2]
[340067394,1728459046060,-295.2961936,0.0003589,2]
[340067395,1728459046070,-153.0,0.0003589,2]
[340067396,1728459046080,-273.5569807,0.0003589,2]
[340067397,1728459046091,-153.0,0.0003589,2]
[340067399,1728459046100,-446.05,0.000359,14]
[340067400,1728459046110,-3000.0,0.000359,25]
[340067401,1728459046120,-150.0,0.000359,2]
[340067403,1728459046130,-1407.303801,0.000359,19]
[340067404,1728459046140,-200.0,0.0003591,33]
[340067405,1728459046150,-3000.0,0.0003591,25]
[340067406,1728459046160,-3000.0,0.0003592,25]
[340067407,1728459046169,-3000.0,0.0003593,25]
[340067409,1728459046179,-5111.62974011,0.0003593,5]
[340067411,1728459046189,-1894.7311295,0.0003593,5]
[340067413,1728459046198,-3000.0,0.0003594,25]
[340067414,1728459046208,-3000.0,0.0003595,25]
[340067415,1728459046217,-3000.0,0.0003596,25]
[340067416,1728459046226,-3000.0,0.0003597,25]
[340067417,1728459046236,-501.71461933,0.00035973,5]
[340067418,1728459046246,-500.0,0.00035973,5]
[340067419,1728459046256,-500.84351251,0.00035973,5]
[340067420,1728459046266,-500.0,0.00035973,5]
[340067421,1728459046275,-547.41677968,0.00035973,5]
[340067422,1728459046285,-3000.0,0.0003598,26]
[340067423,1728459046295,-10223.2594802,0.0003598,5]
[340067424,1728459046304,-3789.462259,0.0003598,5]
[340067425,1728459046313,-3000.0,0.0003599,26]
[340067426,1728459046323,-152.51376,0.0003599,14]
[340067427,1728459046332,-151.0,0.0003599,14]
[340067428,1728459046341,-151.0,0.0003599,14]
[340067429,1728459046350,-306.963749,0.0003599,14]
[340067430,1728459046359,-151.0,0.0003599,14]
[340067431,1728459046369,-899.028115,0.0003599,14]
[340067432,1728459046378,-449.772141,0.0003599,14]
[340067433,1728459046388,-151.0,0.0003599,14]
[340067434,1728459046397,-449.772141,0.0003599,14]
[340067435,1728459046406,-151.0,0.0003599,14]
[340067436,1728459046415,-151.0,0.0003599,14]
[340067437,1728459046425,-599.251107,0.0003599,14]
[340067438,1728459046435,-599.251107,0.0003599,14]
[340067439,1728459046444,-151.0,0.0003599,14]
[340067440,1728459046454,-1966.91651,0.0003599,14]
[340067441,1728459046464,-239.997256,0.0003599,14]
[340067442,1728459046473,-1966.91651,0.0003599,14]
[340067443,1728459046482,-151.0,0.0003599,14]
[340067444,1728459046491,-987.166839,0.0003599,14]
[340067445,1728459046501,-151.0,0.0003599,14]
[340067446,1728459046510,-151.0,0.0003599,14]
[340067447,1728459046520,-151.0,0.0003599,14]
[340067448,1728459046529,-987.166839,0.0003599,14]
[340067449,1728459046538,-151.0,0.0003599,14]
[340067450,1728459046548,-151.0,0.0003599,14]
[340067451,1728459046558,-151.0,0.0003599,2]
[340067452,1728459046567,-151.0,0.0003599,14]
[340067453,1728459046576,-151.0,0.0003599,14]
[340067454,1728459046585,-151.0,0.0003599,14]
[340067455,1728459046595,-151.0,0.0003599,7]
[340067456,1728459046604,-5111.62974011,0.0003599,5]
[340067457,1728459046613,-1894.7311295,0.0003599,5]
[340067459,1728459046622,-1328.300863,0.0003599,14]
[340067460,1728459046631,-151.0,0.0003599,14]
[340067461,1728459046640,-1328.300863,0.0003599,14]
[340067462,1728459046649,-428.823346,0.0003599,14]
[340067463,1728459046658,-151.0,0.0003599,14]
[340067464,1728459046668,-649.190363,0.0003599,14]
[340067465,1728459046678,-428.823346,0.0003599,14]
[340067466,1728459046688,-649.190363,0.0003599,14]
[340067467,1728459046697,-151.0,0.0003599,14]
[340067468,1728459046707,-504.869163,0.0003599,14]
[340067469,1728459046716,-504.869163,0.0003599,14]
[340067470,1728459046725,-3744.318195,0.0003599,14]
[340067471,1728459046735,-3744.318195,0.0003599,14]
[340067472,1728459046744,-151.0,0.0003599,14]
[340067473,1728459046754,-198.338772,0.0003599,14]
[340067474,1728459046764,-198.338772,0.0003599,14]
[340067475,1728459046775,-432.229295,0.0003599,14]
[340067476,1728459046784,-432.229295,0.0003599,14]
[340067477,1728459046793,-151.0,0.0003599,14]
[340067478,1728459046803,-1564187.87959,0.00035999,7]
[340067479,1728459046811,-151.0,0.00035999,14]
[340067480,1728459046821,-48819.1,0.00036,25]
[340067481,1728459046830,-151.0,0.00036,14]
[340067482,1728459046840,-151.0,0.00036,14]
[340067483,1728459046849,-151.0,0.00036,14]
[340067484,1728459046858,-3000.0,0.00036,26]
[340067485,1728459046868,-352.712753,0.00036,2]
[340067486,1728459046877,-3000.0,0.0003601,26]
[340067487,1728459046887,-3000.0,0.0003602,26]
[340067488,1728459046896,-3000.0,0.0003603,26]
[340067489,1728459046906,-3000.0,0.0003604,26]
[340067490,1728459046916,-151.0,0.0003604,14]
[340067491,1728459046926,-151.0,0.0003604,14]
[340067492,1728459046935,-198.338772,0.0003604,14]
[340067493,1728459046944,-198.338772,0.0003604,14]
[340067494,1728459046954,-432.229295,0.0003604,14]
[340067495,1728459046963,-432.229295,0.0003604,14]
[340067496,1728459046972,-151.0,0.0003604,14]
[340067497,1728459046982,-3000.0,0.0003605,26]
[340067498,1728459046991,-216.863228,0.0003606,14]
[340067499,1728459047000,-151.0,0.0003606,14]
[340067500,1728459047009,-151.0,0.0003606,14]
[340067501,1728459047019,-225.492407,0.0003606,14]
[340067502,1728459047028,-225.492407,0.0003606,14]
[340067503,1728459047037,-151.997248,0.0003606,14]
[340067504,1728459047046,-151.0,0.0003606,14]
[340067505,1728459047055,-3420.583268,0.0003606,26]
[340067506,1728459047064,-229.823373,0.0003606,7]
[340067507,1728459047073,-1328.300863,0.0003606,14]
[340067508,1728459047083,-151.0,0.0003606,14]
[340067509,1728459047092,-1328.300863,0.0003606,14]
[340067510,1728459047101,-159.566857,0.0003606,14]
[340067511,1728459047111,-649.190363,0.0003606,14]
[340067512,1728459047120,-649.190363,0.0003606,14]
[340067513,1728459047131,-504.869163,0.0003606,14]
[340067514,1728459047141,-504.869163,0.0003606,14]
[340067515,1728459047150,-3744.318195,0.0003606,14]
[340067516,1728459047160,-3744.318195,0.0003606,14]
[340067517,1728459047169,-151.0,0.0003606,14]